[Event "27th OIBM 2024"]
[Site "Gmund am Tegernsee"]
[Date "2024.10.29"]
[Round "4.9"]
[White "Giemsa, Stephan"]
[Black "Heberla, Bartlomiej"]
[Result "0-1"]
[ECO "E12"]
[WhiteElo "2275"]
[BlackElo "2501"]
[Annotator "RC"]
[PlyCount "106"]
[EventDate "2024.09.16"]
[EventType "swiss"]
[EventCountry "GER"]
[SourceTitle "playchess.com"]
[Source "ChessBase"]
[SourceQuality "1"]
[TimeControl "40/5400+30:1800+30"]

1. d4 {[%emt 0:00:09]} Nf6 {[%emt 0:13:27]} 2. c4 {[%emt 0:00:09]} b6 {[%emt 0:00:07]} 3. Nc3 {[%emt 0:12:59]} Bb7 {[%emt 0:00:23]} 4. a3 {[%emt 0:01:34]} e6 {[%emt 0:03:04]} 5. Nf3 {[%emt 0:07:04]} Bxf3 {[%emt 0:07:32]} 6. gxf3 {[%emt 0:07:40]} g6 {[%emt 0:01:18]} 7. e4 {[%emt 0:07:30]} d6 {[%emt 0:19:09]} 8. f4 {[%emt 0:06:16]} Nbd7 {[%emt 0:04:12]} 9. e5 {[%emt 0:09:28]} Nh5 {[%emt 0:00:02]} 10. Bg2 {[%emt 0:00:21]} Bh6 {[%emt 0:00:10]} 11. Bxa8 {[%emt 0:09:40]} Qxa8 {[%emt 0:04:21]} 12. d5 {[%emt 0:00:08]} Bxf4 {[%emt 0:09:14]} 13. exd6 {[%emt 0:04:08]} cxd6 {[%emt 0:00:41]} 14. O-O {[%emt 0:03:34]} e5 {[%emt 0:02:35]} 15. Bxf4 {[%emt 0:07:50]} Nxf4 {[%emt 0:00:37]} 16. Ne2 {[%emt 0:00:26]} Nxe2+ {[%emt 0:02:13]} 17. Qxe2 {[%emt 0:00:05]} O-O {[%emt 0:00:06]} 18. b4 {[%emt 0:02:10]} Qd8 {[%emt 0:01:40]} 19. f3 {[%emt 0:04:42]} f5 {[%emt 0:02:03]} 20. a4 {[%emt 0:02:22]} a5 {[%emt 0:02:49]} 21. bxa5 {[%emt 0:01:48]} bxa5 {[%emt 0:00:02]} 22. Rfb1 {[%emt 0:01:40]} Qh4 {[%emt 0:04:05]} 23. Kh1 {[%emt 0:01:13]} e4 {[%emt 0:05:37]} 24. Rf1 {[%emt 0:04:06]} Ne5 {[%emt 0:01:15]} 25. f4 {[%emt 0:01:01]} Nd3 {[%emt 0:00:11]} 26. Qe3 {[%emt 0:01:21]} Rc8 {[%emt 0:05:47]} 27. Rab1 {[%emt 0:00:40]} Nb4 {[%emt 0:01:28]} 28. Rfc1 {[%emt 0:00:15]} Rc5 {[%emt 0:00:15]} 29. Qg3 {[%emt 0:01:06]} Qf6 {[%emt 0:01:34]} 30. Qe3 {[%emt 0:00:52]} Qh4 {[%emt 0:03:16]} 31. Qg3 {[%emt 0:00:05]} Qxg3 {[%emt 0:00:06]} 32. hxg3 {[%emt 0:00:05]} h6 {[%emt 0:00:15]} 33. Kg2 {[%emt 0:01:19]} Kg7 {[%emt 0:00:04]} 34. Kf1 {[%emt 0:00:41]} g5 {[%emt 0:00:02]} 35. Ke2 {[%emt 0:00:58]} Kg6 {[%emt 0:01:18]} 36. Ke3 {[%emt 0:00:22]} Kh5 {[%emt 0:02:08]} 37. Rh1+ {[%emt 0:01:46]} Kg4 {[%emt 0:01:05]} 38. Rxh6 {[%emt 0:00:14]} Rxc4 {[%emt 0:00:02]} 39. fxg5 {[%emt 0:01:14]} Nxd5+ {[%emt 0:01:31]} 40. Kd2 {[%emt 0:00:43]} Kxg5 {[%emt 0:02:14]} 41. Rxd6 {[%emt 0:02:28]} Nb4 {[%emt 0:01:50]} 42. Rf1 {[%emt 0:15:39]} Rc2+ {[%emt 0:02:08]} 43. Kd1 {[%emt 0:00:32]} Ra2 {[%emt 0:23:55]} 44. Rd8 {[%emt 0:05:06]} Nc2 {[%emt 0:04:15]} 45. Kd2 {[%emt 0:05:43]} Nb4+ {[%emt 0:01:52]} 46. Kd1 {[%emt 0:00:42]} Nd3 {[%emt 0:00:04]} 47. Rd5 {[%emt 0:01:41]} Nf2+ {[%emt 0:00:21]} 48. Ke1 {[%emt 0:00:52]} e3 {[%emt 0:00:03]} 49. Rd4 {[%emt 0:01:08]} Rb2 {[%emt 0:01:01]} 50. Rd5 {[%emt 0:01:09]} Kg4 {[%emt 0:00:16]} 51. Rxf2 {[%emt 0:00:30]} Rxf2 {[%emt 0:00:22]} 52. Rxa5 {[%emt 0:00:04]} Kxg3 {[%emt 0:00:15]} 53. Ra8 {[%emt 0:00:28]} Ra2 {[%emt 0:00:22]} 0-1

[Event "27th OIBM 2024"]
[Site "Gmund am Tegernsee"]
[Date "2024.10.29"]
[Round "4.11"]
[White "Morawietz, Dieter"]
[Black "Arnold, Max"]
[Result "0-1"]
[ECO "B85"]
[WhiteElo "2372"]
[BlackElo "2255"]
[Annotator "RC"]
[PlyCount "132"]
[EventDate "2024.09.16"]
[EventType "swiss"]
[EventCountry "GER"]
[SourceTitle "playchess.com"]
[Source "ChessBase"]
[SourceQuality "1"]
[TimeControl "40/5400+30:1800+30"]

1. e4 {[%emt 0:00:03]} c5 {[%emt 0:00:15]} 2. Nf3 {[%emt 0:00:08]} e6 {[%emt 0:00:13]} 3. d4 {[%emt 0:00:08]} cxd4 {[%emt 0:00:08]} 4. Nxd4 {[%emt 0:00:08]} Nc6 {[%emt 0:00:22]} 5. Nc3 {[%emt 0:00:20]} Qc7 {[%emt 0:00:35]} 6. Be2 {[%emt 0:00:47]} Nf6 {[%emt 0:00:42]} 7. O-O {[%emt 0:01:21]} a6 {[%emt 0:00:47]} 8. Be3 {[%emt 0:00:43]} Be7 {[%emt 0:00:40]} 9. f4 {[%emt 0:00:36]} d6 {[%emt 0:00:41]} 10. Kh1 {[%emt 0:01:49]} O-O {[%emt 0:01:13]} 11. a4 {[%emt 0:00:19]} Nxd4 {[%emt 0:01:39]} 12. Qxd4 {[%emt 0:01:37]} Bd7 {[%emt 0:00:51]} 13. e5 {[%emt 0:25:50]} Ne8 {[%emt 0:01:29]} 14. Rad1 {[%emt 0:06:31]} Bc6 {[%emt 0:03:03]} 15. Bf2 {[%emt 0:09:20]} Rd8 {[%emt 0:07:12]} 16. Qe3 {[%emt 0:05:04]} g6 {[%emt 0:09:05]} 17. Bd3 {[%emt 0:04:23]} Ng7 {[%emt 0:02:19]} 18. Rde1 {[%emt 0:08:54]} Rfe8 {[%emt 0:08:14]} 19. Qh3 {[%emt 0:00:50]} Nf5 {[%emt 0:04:32]} 20. Bxf5 {[%emt 0:03:03]} exf5 {[%emt 0:00:31]} 21. e6 {[%emt 0:10:09]} Bf6 {[%emt 0:05:01]} 22. Bh4 {[%emt 0:00:57]} Rxe6 {[%emt 0:14:15]} 23. Rxe6 {[%emt 0:00:58]} Bxh4 {[%emt 0:00:08]} 24. Re3 {[%emt 0:09:00]} Bf6 {[%emt 0:00:32]} 25. Ne2 {[%emt 0:03:41]} Bxa4 {[%emt 0:06:53]} 26. c3 {[%emt 0:00:08]} Qb6 {[%emt 0:02:13]} 27. b4 {[%emt 0:00:38]} Bc6 {[%emt 0:02:33]} 28. Rd1 {[%emt 0:01:14]} Be4 {[%emt 0:01:03]} 29. Nd4 {[%emt 0:01:29]} d5 {[%emt 0:04:22]} 30. Qg3 {[%emt 0:02:25]} Rc8 {[%emt 0:02:40]} 31. Qf2 {[%emt 0:02:01]} Kh8 {[%emt 0:11:42]} 32. Kg1 {[%emt 0:00:12]} Rc4 {[%emt 0:01:42]} 33. Qb2 {[%emt 0:00:53]} a5 {[%emt 0:02:54]} 34. b5 {[%emt 0:00:08]} Qc7 {[%emt 0:00:47]} 35. g3 {[%emt 0:00:30]} Qc5 {[%emt 0:01:25]} 36. Kf2 {[%emt 0:01:04]} Kg7 {[%emt 0:00:09]} 37. h4 {[%emt 0:00:09]} a4 {[%emt 0:01:16]} 38. Rd2 {[%emt 0:00:39]} h6 {[%emt 0:04:07]} 39. Ne2 {[%emt 0:01:09]} Bd8 {[%emt 0:01:12]} 40. Nd4 {[%emt 0:00:16]} Ba5 {[%emt 0:00:27]} 41. Ne2 {[%emt 0:02:45]} Bb6 {[%emt 0:07:45]} 42. Nd4 {[%emt 0:00:33]} Qe7 {[%emt 0:02:23]} 43. Rd1 {[%emt 0:02:23]} Qf6 {[%emt 0:02:27]} 44. Kf1 {[%emt 0:01:15]} Bc5 {[%emt 0:05:56]} 45. Re2 {[%emt 0:03:14]} Bxd4 {[%emt 0:02:49]} 46. Rxd4 {[%emt 0:00:07]} Rxd4 {[%emt 0:00:12]} 47. cxd4 {[%emt 0:00:05]} Bd3 {[%emt 0:00:05]} 48. Kf2 {[%emt 0:01:08]} Bxe2 {[%emt 0:00:31]} 49. Kxe2 {[%emt 0:00:07]} Qe7+ {[%emt 0:03:37]} 50. Kf2 {[%emt 0:00:12]} Qe4 {[%emt 0:00:55]} 51. Qc3 {[%emt 0:00:06]} Qb1 {[%emt 0:01:48]} 52. Qc7 {[%emt 0:00:36]} Qb2+ {[%emt 0:02:38]} 53. Ke3 {[%emt 0:00:51]} Qxb5 {[%emt 0:01:09]} 54. Qe5+ {[%emt 0:00:07]} Kg8 {[%emt 0:00:42]} 55. Qb8+ {[%emt 0:00:15]} Kh7 {[%emt 0:00:16]} 56. Qf8 {[%emt 0:01:13]} Qd7 {[%emt 0:00:24]} 57. Kd2 {[%emt 0:00:06]} Qc7 {[%emt 0:00:56]} 58. Kd1 {[%emt 0:01:24]} h5 {[%emt 0:02:19]} 59. Kd2 {[%emt 0:00:06]} Qd7 {[%emt 0:01:12]} 60. Kc3 {[%emt 0:00:36]} Qc6+ {[%emt 0:00:29]} 61. Kb2 {[%emt 0:00:41]} Qb6+ {[%emt 0:01:05]} 62. Ka2 {[%emt 0:01:12]} Qxd4 {[%emt 0:01:02]} 63. Qxf7+ {[%emt 0:03:35]} Qg7 {[%emt 0:00:01]} 64. Qe8 {[%emt 0:00:08]} Qc7 {[%emt 0:00:34]} 65. Ka3 {[%emt 0:00:23]} Qc3+ {[%emt 0:00:08]} 66. Kxa4 {[%emt 0:00:10]} Qc6+ {[%emt 0:00:07]} 0-1

[Event "27th OIBM 2024"]
[Site "Gmund am Tegernsee"]
[Date "2024.10.29"]
[Round "4.12"]
[White "Georgescu, Lena"]
[Black "Schramm, Christian"]
[Result "1-0"]
[ECO "B12"]
[WhiteElo "2236"]
[BlackElo "2361"]
[Annotator "RC"]
[PlyCount "41"]
[EventDate "2024.09.16"]
[EventType "swiss"]
[EventCountry "GER"]
[SourceTitle "playchess.com"]
[Source "ChessBase"]
[SourceQuality "1"]
[TimeControl "40/5400+30:1800+30"]

1. e4 {[%emt 0:00:07]} c6 {[%emt 0:00:09]} 2. d4 {[%emt 0:00:09]} d5 {[%emt 0:00:08]} 3. e5 {[%emt 0:00:05]} Bf5 {[%emt 0:00:33]} 4. h4 {[%emt 0:00:04]} a6 {[%emt 0:01:28]} 5. c4 {[%emt 0:01:33]} e6 {[%emt 0:01:33]} 6. Nc3 {[%emt 0:02:42]} h5 {[%emt 0:08:14]} 7. Bd3 {[%emt 0:05:55]} dxc4 {[%emt 0:10:03]} 8. Bxf5 {[%emt 0:01:21]} exf5 {[%emt 0:00:03]} 9. Nf3 {[%emt 0:03:43]} Bb4 {[%emt 0:07:57]} 10. Qc2 {[%emt 0:04:41]} c5 {[%emt 0:07:34]} 11. Bg5 {[%emt 0:07:53]} f6 {[%emt 0:29:22]} 12. exf6 {[%emt 0:01:06]} Nxf6 {[%emt 0:00:49]} 13. O-O {[%emt 0:12:08]} O-O {[%emt 0:06:47]} 14. Rad1 {[%emt 0:02:29]} Bxc3 {[%emt 0:02:13]} 15. Qxc3 {[%emt 0:06:19]} Qd5 {[%emt 0:02:55]} 16. dxc5 {[%emt 0:00:39]} Qxc5 {[%emt 0:00:47]} 17. Bxf6 {[%emt 0:03:05]} Rxf6 {[%emt 0:06:12]} 18. Rd8+ {[%emt 0:00:18]} Rf8 {[%emt 0:00:17]} 19. Rxf8+ {[%emt 0:02:14]} Kxf8 {[%emt 0:00:17]} 20. Ng5 {[%emt 0:04:34]} Qd5 {[%emt 0:06:54]} 21. Re1 {[%emt 0:03:22]} 1-0

[Event "27th OIBM 2024"]
[Site "Gmund am Tegernsee"]
[Date "2024.10.29"]
[Round "4.13"]
[White "Malinowsky, Levi"]
[Black "Womacka, Mathias"]
[Result "1/2-1/2"]
[ECO "B90"]
[WhiteElo "2117"]
[BlackElo "2345"]
[Annotator "RC"]
[PlyCount "34"]
[EventDate "2024.09.16"]
[EventType "swiss"]
[EventCountry "GER"]
[SourceTitle "playchess.com"]
[Source "ChessBase"]
[SourceQuality "1"]
[TimeControl "40/5400+30:1800+30"]

1. e4 {[%emt 0:00:03]} c5 {[%emt 0:00:11]} 2. Nf3 {[%emt 0:00:05]} d6 {[%emt 0:00:10]} 3. d4 {[%emt 0:00:05]} cxd4 {[%emt 0:00:06]} 4. Nxd4 {[%emt 0:00:06]} Nf6 {[%emt 0:00:03]} 5. Nc3 {[%emt 0:00:06]} a6 {[%emt 0:00:15]} 6. Bd3 {[%emt 0:00:08]} Nc6 {[%emt 0:00:49]} 7. Nxc6 {[%emt 0:00:50]} bxc6 {[%emt 0:00:04]} 8. b3 {[%emt 0:01:45]} e5 {[%emt 0:01:27]} 9. Qe2 {[%emt 0:04:00]} Be7 {[%emt 0:03:13]} 10. Bb2 {[%emt 0:01:19]} O-O {[%emt 0:02:04]} 11. O-O {[%emt 0:01:36]} Nd7 {[%emt 0:14:50]} 12. Na4 {[%emt 0:05:15]} Nb6 {[%emt 0:12:00]} 13. Nxb6 {[%emt 0:02:59]} Qxb6 {[%emt 0:00:05]} 14. c4 {[%emt 0:02:19]} a5 {[%emt 0:13:12]} 15. Rac1 {[%emt 0:07:12]} c5 {[%emt 0:01:29]} 16. Bc2 {[%emt 0:04:27]} a4 {[%emt 0:00:18]} 17. Bc3 {[%emt 0:01:07]} axb3 {[%emt 0:06:13]} 1/2-1/2

[Event "27th OIBM 2024"]
[Site "Gmund am Tegernsee"]
[Date "2024.10.29"]
[Round "4.14"]
[White "Dolzhykova, Kateryna"]
[Black "Zheng, Harry Z"]
[Result "0-1"]
[ECO "C29"]
[WhiteElo "2345"]
[BlackElo "2232"]
[Annotator "RC"]
[PlyCount "158"]
[EventDate "2024.09.16"]
[EventType "swiss"]
[EventCountry "GER"]
[SourceTitle "playchess.com"]
[Source "ChessBase"]
[SourceQuality "1"]
[TimeControl "40/5400+30:1800+30"]

1. e4 {[%emt 0:00:04]} e5 {[%emt 0:00:13]} 2. Nc3 {[%emt 0:00:07]} Nf6 {[%emt 0:00:14]} 3. f4 {[%emt 0:00:07]} d5 {[%emt 0:00:49]} 4. fxe5 {[%emt 0:00:08]} Nxe4 {[%emt 0:00:22]} 5. Nf3 {[%emt 0:00:06]} Nc6 {[%emt 0:08:32]} 6. Bb5 {[%emt 0:00:27]} Bg4 {[%emt 0:07:09]} 7. O-O {[%emt 0:07:54]} Bc5+ {[%emt 0:01:19]} 8. d4 {[%emt 0:00:28]} Bb6 {[%emt 0:00:45]} 9. Qd3 {[%emt 0:14:50]} O-O {[%emt 0:04:10]} 10. Bxc6 {[%emt 0:02:52]} bxc6 {[%emt 0:00:28]} 11. Be3 {[%emt 0:00:38]} Nxc3 {[%emt 0:19:58]} 12. Qxc3 {[%emt 0:05:19]} Qd7 {[%emt 0:00:38]} 13. Rae1 {[%emt 0:02:01]} Rae8 {[%emt 0:01:27]} 14. b4 {[%emt 0:01:43]} Ra8 {[%emt 0:07:06]} 15. Kh1 {[%emt 0:13:21]} a5 {[%emt 0:02:39]} 16. a3 {[%emt 0:00:08]} axb4 {[%emt 0:01:59]} 17. axb4 {[%emt 0:00:04]} Bf5 {[%emt 0:03:56]} 18. Ra1 {[%emt 0:03:17]} h6 {[%emt 0:03:22]} 19. Bg1 {[%emt 0:02:04]} Be4 {[%emt 0:01:57]} 20. Nd2 {[%emt 0:01:35]} Bg6 {[%emt 0:01:36]} 21. h3 {[%emt 0:00:19]} Qe6 {[%emt 0:02:59]} 22. Bh2 {[%emt 0:07:13]} Rfb8 {[%emt 0:03:22]} 23. Bg3 {[%emt 0:05:20]} Bf5 {[%emt 0:01:58]} 24. Kh2 {[%emt 0:05:29]} Qg6 {[%emt 0:00:59]} 25. Nf3 {[%emt 0:02:53]} Bxc2 {[%emt 0:06:32]} 26. Rxa8 {[%emt 0:00:58]} Rxa8 {[%emt 0:00:11]} 27. e6 {[%emt 0:00:02]} Ba4 {[%emt 0:08:46]} 28. e7 {[%emt 0:05:21]} Re8 {[%emt 0:00:20]} 29. Ne5 {[%emt 0:04:53]} Qe6 {[%emt 0:00:29]} 30. Rxf7 {[%emt 0:02:38]} Rxe7 {[%emt 0:00:11]} 31. Rf4 {[%emt 0:00:45]} Re8 {[%emt 0:01:36]} 32. Qd3 {[%emt 0:01:29]} Bb5 {[%emt 0:01:06]} 33. Qf3 {[%emt 0:00:11]} Ba6 {[%emt 0:02:25]} 34. Bf2 {[%emt 0:00:59]} Qd6 {[%emt 0:01:39]} 35. Rg4 {[%emt 0:03:37]} Qf8 {[%emt 0:02:51]} 36. Qg3 {[%emt 0:00:38]} Re6 {[%emt 0:01:39]} 37. Rf4 {[%emt 0:00:43]} Qd6 {[%emt 0:02:09]} 38. h4 {[%emt 0:02:20]} Rf6 {[%emt 0:00:30]} 39. Rg4 {[%emt 0:00:29]} Qe7 {[%emt 0:00:08]} 40. Ng6 {[%emt 0:03:03]} Qf7 {[%emt 0:01:00]} 41. Ne5 {[%emt 0:05:00]} Qe7 {[%emt 0:00:34]} 42. Be3 {[%emt 0:04:39]} Bc8 {[%emt 0:03:15]} 43. Rg6 {[%emt 0:00:39]} Rxg6 {[%emt 0:00:30]} 44. Nxg6 {[%emt 0:00:18]} Qf6 {[%emt 0:05:06]} 45. h5 {[%emt 0:02:02]} Be6 {[%emt 0:02:25]} 46. Qe5 {[%emt 0:02:08]} Qxe5+ {[%emt 0:02:23]} 47. Nxe5 {[%emt 0:00:05]} Bf7 {[%emt 0:02:29]} 48. g4 {[%emt 0:03:07]} Be8 {[%emt 0:00:24]} 49. Kg3 {[%emt 0:00:46]} Ba7 {[%emt 0:02:10]} 50. Nf3 {[%emt 0:00:34]} Kf7 {[%emt 0:03:00]} 51. Bf4 {[%emt 0:00:06]} Ke6 {[%emt 0:00:37]} 52. Be5 {[%emt 0:01:08]} Kf7 {[%emt 0:00:32]} 53. Kf4 {[%emt 0:01:25]} Bd7 {[%emt 0:01:25]} 54. Nh4 {[%emt 0:01:13]} Be6 {[%emt 0:01:54]} 55. Nf5 {[%emt 0:00:21]} Bxf5 {[%emt 0:02:41]} 56. gxf5 {[%emt 0:02:38]} Bb6 {[%emt 0:00:16]} 57. Ke3 {[%emt 0:00:08]} Ba7 {[%emt 0:00:28]} 58. Kd3 {[%emt 0:00:16]} Bb6 {[%emt 0:01:13]} 59. Kc3 {[%emt 0:00:07]} Kg8 {[%emt 0:02:11]} 60. Kb3 {[%emt 0:00:18]} Kf8 {[%emt 0:01:30]} 61. Ka4 {[%emt 0:02:28]} Kf7 {[%emt 0:00:25]} 62. Ka3 {[%emt 0:03:03]} Kg8 {[%emt 0:00:10]} 63. Kb3 {[%emt 0:00:06]} Kf8 {[%emt 0:00:15]} 64. Kc3 {[%emt 0:00:11]} Kf7 {[%emt 0:00:25]} 65. Kd3 {[%emt 0:00:07]} Ba7 {[%emt 0:00:47]} 66. Kd2 {[%emt 0:02:54]} Bb6 {[%emt 0:00:25]} 67. Kc3 {[%emt 0:00:10]} Kf8 {[%emt 0:00:12]} 68. f6 {[%emt 0:01:44]} gxf6 {[%emt 0:00:19]} 69. Bf4 {[%emt 0:01:46]} Kg7 {[%emt 0:01:02]} 70. Kd3 {[%emt 0:00:08]} Ba7 {[%emt 0:01:09]} 71. Be3 {[%emt 0:02:25]} Bb8 {[%emt 0:00:57]} 72. Ke2 {[%emt 0:00:21]} c5 {[%emt 0:00:48]} 73. b5 {[%emt 0:01:09]} c6 {[%emt 0:02:52]} 74. dxc5 {[%emt 0:01:13]} cxb5 {[%emt 0:00:10]} 75. c6 {[%emt 0:00:29]} f5 {[%emt 0:00:59]} 76. Kf3 {[%emt 0:00:27]} b4 {[%emt 0:01:13]} 77. Bb6 {[%emt 0:01:21]} Kf6 {[%emt 0:00:44]} 78. Bd8+ {[%emt 0:00:06]} Ke6 {[%emt 0:00:14]} 79. c7 {[%emt 0:00:53]} Bxc7 {[%emt 0:00:06]} 0-1

[Event "27th OIBM 2024"]
[Site "Gmund am Tegernsee"]
[Date "2024.10.29"]
[Round "4.15"]
[White "Vatter, Hans-Joachim"]
[Black "Stopa, Jacek"]
[Result "0-1"]
[ECO "C02"]
[WhiteElo "2217"]
[BlackElo "2326"]
[Annotator "RC"]
[PlyCount "58"]
[EventDate "2024.09.16"]
[EventType "swiss"]
[EventCountry "GER"]
[SourceTitle "playchess.com"]
[Source "ChessBase"]
[SourceQuality "1"]
[TimeControl "40/5400+30:1800+30"]

1. e4 {[%emt 0:00:03]} e6 {[%emt 0:00:15]} 2. d4 {[%emt 0:00:12]} d5 {[%emt 0:00:05]} 3. e5 {[%emt 0:01:33]} c5 {[%emt 0:00:05]} 4. c3 {[%emt 0:00:06]} Nc6 {[%emt 0:00:02]} 5. Nf3 {[%emt 0:00:11]} Bd7 {[%emt 0:00:04]} 6. a3 {[%emt 0:02:14]} Nge7 {[%emt 0:00:07]} 7. b4 {[%emt 0:04:34]} cxd4 {[%emt 0:00:06]} 8. cxd4 {[%emt 0:00:12]} Nf5 {[%emt 0:00:06]} 9. Be3 {[%emt 0:12:22]} b5 {[%emt 0:07:31]} 10. Bxb5 {[%emt 0:05:38]} Nxe5 {[%emt 0:01:47]} 11. Bxd7+ {[%emt 0:00:09]} Nxd7 {[%emt 0:00:04]} 12. O-O {[%emt 0:00:22]} Be7 {[%emt 0:03:40]} 13. Nbd2 {[%emt 0:07:14]} a5 {[%emt 0:02:32]} 14. b5 {[%emt 0:09:42]} a4 {[%emt 0:03:20]} 15. Nb1 {[%emt 0:08:40]} O-O {[%emt 0:04:00]} 16. Qd3 {[%emt 0:05:50]} Nd6 {[%emt 0:02:37]} 17. Bf4 {[%emt 0:07:09]} Qa5 {[%emt 0:08:07]} 18. Bxd6 {[%emt 0:03:54]} Bxd6 {[%emt 0:00:08]} 19. Ra2 {[%emt 0:01:14]} Rfc8 {[%emt 0:04:42]} 20. Rb2 {[%emt 0:01:33]} h6 {[%emt 0:00:43]} 21. g3 {[%emt 0:02:16]} Nb6 {[%emt 0:04:40]} 22. Nfd2 {[%emt 0:11:49]} Rab8 {[%emt 0:02:21]} 23. f4 {[%emt 0:08:44]} Nc4 {[%emt 0:04:04]} 24. Nxc4 {[%emt 0:01:49]} dxc4 {[%emt 0:01:24]} 25. Qe2 {[%emt 0:02:25]} Rxb5 {[%emt 0:02:10]} 26. Rc2 {[%emt 0:00:03]} Qb6 {[%emt 0:02:28]} 27. Nd2 {[%emt 0:00:56]} Qxd4+ {[%emt 0:00:57]} 28. Kh1 {[%emt 0:00:11]} Qd5+ {[%emt 0:02:23]} 29. Nf3 {[%emt 0:00:26]} Rb3 {[%emt 0:02:02]} 0-1

[Event "27th OIBM 2024"]
[Site "Gmund am Tegernsee"]
[Date "2024.10.29"]
[Round "4.16"]
[White "Gschiel, Alexander"]
[Black "Brychcy, Felix"]
[Result "1-0"]
[ECO "B07"]
[WhiteElo "2326"]
[BlackElo "1999"]
[Annotator "RC"]
[PlyCount "71"]
[EventDate "2024.09.16"]
[EventType "swiss"]
[EventCountry "GER"]
[SourceTitle "playchess.com"]
[Source "ChessBase"]
[SourceQuality "1"]
[TimeControl "40/5400+30:1800+30"]

1. d4 {[%emt 0:00:10]} Nf6 {[%emt 0:00:05]} 2. Nf3 {[%emt 0:00:09]} g6 {[%emt 0:00:09]} 3. g3 {[%emt 0:00:08]} Bg7 {[%emt 0:00:05]} 4. Bg2 {[%emt 0:00:08]} O-O {[%emt 0:00:04]} 5. O-O {[%emt 0:00:09]} d6 {[%emt 0:00:21]} 6. Nc3 {[%emt 0:00:13]} Nbd7 {[%emt 0:17:22]} 7. e4 {[%emt 0:00:28]} e5 {[%emt 0:00:43]} 8. Re1 {[%emt 0:00:43]} c6 {[%emt 0:05:20]} 9. a4 {[%emt 0:01:03]} a5 {[%emt 0:08:43]} 10. h3 {[%emt 0:00:27]} Qc7 {[%emt 0:03:50]} 11. Be3 {[%emt 0:01:32]} Re8 {[%emt 0:07:43]} 12. d5 {[%emt 0:00:33]} Nb6 {[%emt 0:05:02]} 13. Nd2 {[%emt 0:08:12]} cxd5 {[%emt 0:08:14]} 14. exd5 {[%emt 0:06:25]} Bd7 {[%emt 0:04:02]} 15. Qe2 {[%emt 0:03:40]} Rec8 {[%emt 0:07:23]} 16. Nb5 {[%emt 0:07:10]} Bxb5 {[%emt 0:00:11]} 17. Qxb5 {[%emt 0:00:08]} Nfd7 {[%emt 0:12:08]} 18. c3 {[%emt 0:02:17]} f5 {[%emt 0:01:36]} 19. Ra3 {[%emt 0:14:29]} Nc5 {[%emt 0:12:03]} 20. Rc1 {[%emt 0:10:50]} Nbd7 {[%emt 0:01:22]} 21. b4 {[%emt 0:00:44]} Na6 {[%emt 0:00:55]} 22. Nb3 {[%emt 0:01:34]} axb4 {[%emt 0:01:55]} 23. cxb4 {[%emt 0:00:05]} Qd8 {[%emt 0:00:03]} 24. Na5 {[%emt 0:04:01]} Rxc1+ {[%emt 0:01:30]} 25. Bxc1 {[%emt 0:00:01]} Nxb4 {[%emt 0:00:13]} 26. Nxb7 {[%emt 0:02:36]} Qc7 {[%emt 0:00:05]} 27. Bd2 {[%emt 0:00:07]} Rb8 {[%emt 0:00:50]} 28. Bxb4 {[%emt 0:00:10]} Rxb7 {[%emt 0:00:16]} 29. Qc6 {[%emt 0:00:06]} Bf8 {[%emt 0:01:42]} 30. a5 {[%emt 0:01:03]} Qb8 {[%emt 0:00:27]} 31. a6 {[%emt 0:00:20]} Rc7 {[%emt 0:00:59]} 32. Qa4 {[%emt 0:03:06]} Nb6 {[%emt 0:00:29]} 33. a7 {[%emt 0:00:59]} Qa8 {[%emt 0:00:25]} 34. Qa5 {[%emt 0:03:44]} Rc1+ {[%emt 0:00:12]} 35. Bf1 {[%emt 0:00:01]} Nc4 {[%emt 0:00:12]} 36. Qc7 {[%emt 0:00:07]} 1-0

[Event "27th OIBM 2024"]
[Site "Gmund am Tegernsee"]
[Date "2024.10.29"]
[Round "4.17"]
[White "Ernst, Robert"]
[Black "Strahl, Christian"]
[Result "1-0"]
[ECO "B17"]
[WhiteElo "2319"]
[BlackElo "1982"]
[Annotator "RC"]
[PlyCount "69"]
[EventDate "2024.09.16"]
[EventType "swiss"]
[EventCountry "GER"]
[SourceTitle "playchess.com"]
[Source "ChessBase"]
[SourceQuality "1"]
[TimeControl "40/5400+30:1800+30"]

1. e4 {[%emt 0:00:03]} c6 {[%emt 0:00:07]} 2. d4 {[%emt 0:00:07]} d5 {[%emt 0:00:09]} 3. Nd2 {[%emt 0:00:07]} dxe4 {[%emt 0:00:15]} 4. Nxe4 {[%emt 0:00:06]} Nd7 {[%emt 0:00:27]} 5. Bd3 {[%emt 0:00:09]} Ngf6 {[%emt 0:00:35]} 6. Ng5 {[%emt 0:00:10]} e6 {[%emt 0:00:39]} 7. N1f3 {[%emt 0:00:12]} Bd6 {[%emt 0:02:02]} 8. Qe2 {[%emt 0:00:10]} h6 {[%emt 0:05:39]} 9. Ne4 {[%emt 0:01:18]} Nxe4 {[%emt 0:02:26]} 10. Qxe4 {[%emt 0:00:09]} Nf6 {[%emt 0:01:18]} 11. Qe2 {[%emt 0:00:13]} b6 {[%emt 0:04:27]} 12. Ne5 {[%emt 0:03:54]} Bb7 {[%emt 0:01:57]} 13. Bd2 {[%emt 0:00:41]} Qc7 {[%emt 0:03:55]} 14. f4 {[%emt 0:00:56]} a6 {[%emt 0:23:41]} 15. O-O-O {[%emt 0:07:34]} c5 {[%emt 0:06:48]} 16. dxc5 {[%emt 0:00:14]} Qxc5 {[%emt 0:03:39]} 17. Rhe1 {[%emt 0:06:22]} O-O {[%emt 0:09:04]} 18. g4 {[%emt 0:00:39]} Qd5 {[%emt 0:02:20]} 19. Nc4 {[%emt 0:09:09]} b5 {[%emt 0:08:11]} 20. Nxd6 {[%emt 0:01:18]} Qxd6 {[%emt 0:00:26]} 21. g5 {[%emt 0:03:12]} hxg5 {[%emt 0:05:09]} 22. fxg5 {[%emt 0:00:02]} Nd5 {[%emt 0:00:50]} 23. Qh5 {[%emt 0:00:22]} f5 {[%emt 0:01:27]} 24. gxf6 {[%emt 0:03:08]} Nxf6 {[%emt 0:00:37]} 25. Qh3 {[%emt 0:03:36]} Bd5 {[%emt 0:03:51]} 26. Rg1 {[%emt 0:02:01]} Ra7 {[%emt 0:05:34]} 27. Qh4 {[%emt 0:02:56]} e5 {[%emt 0:03:14]} 28. Bb4 {[%emt 0:00:18]} Qb6 {[%emt 0:02:23]} 29. Bxf8 {[%emt 0:00:19]} Kxf8 {[%emt 0:01:51]} 30. Rdf1 {[%emt 0:00:33]} e4 {[%emt 0:00:50]} 31. Qh8+ {[%emt 0:00:46]} Bg8 {[%emt 0:00:19]} 32. Rxf6+ {[%emt 0:00:54]} gxf6 {[%emt 0:01:08]} 33. Qxg8+ {[%emt 0:01:13]} Ke7 {[%emt 0:00:06]} 34. Bxe4 {[%emt 0:00:29]} Qe3+ {[%emt 0:01:16]} 35. Kb1 {[%emt 0:00:06]} 1-0